fUST/lending_fUST_20240116
["ID","MTS","AMOUNT","RATE_DAILY","PERIOD"]
[311702639,1705341034762,-12000.0,0.00024555,2]
[311702640,1705341034844,-12000.0,0.00024555,2]
[311702641,1705341034953,-900.0,0.00024555,2]
[311702730,1705341043614,-4470.62461284,0.00026121,2]
[311702732,1705341043728,-19701.09690261,0.00026121,2]
[311702734,1705341043738,-2977.33888652,0.00026122,2]
[311702737,1705341043748,-500.0,0.00026373,2]
[311702739,1705341043757,-461.06432413,0.0002712,2]
[311702741,1705341043767,-248.86039366,0.00027121,2]
[311702743,1705341043776,-5673.87021567,0.00027121,2]
[311702745,1705341043786,-500.0,0.00027373,2]
[311702747,1705341043796,-509.1638357,0.00027397,2]
[311702749,1705341043805,-200.0,0.00027931,15]
[311702750,1705341043815,-14124.08,0.0002799,3]
[311702751,1705341043826,-10135.33451069,0.00027999,2]
[311702752,1705341043835,-38489.8328699,0.00028,2]
[311702753,1705341043845,-23039.1227672,0.00028,2]
[311702754,1705341043856,-226.4541414,0.00028132,2]
[311702755,1705341043867,-476.36470663,0.00028158,3]
[311702756,1705341043877,-50000.0,0.00028158,5]
[311702757,1705341043887,-36884.09785168,0.00028232,5]
[311702801,1705341263491,268.70937201,0.0001,2]
[311702812,1705341578533,1274.21523244,0.0001,2]
[311702819,1705341630674,534.31449291,0.0001,2]
[311702845,1705341753707,155.02015262,0.0001,2]
[311702967,1705342231827,-154.98450155,0.00025223,4]
[311702969,1705342231837,-166.666666,0.00025224,2]
[311702972,1705342231846,-752.90349888,0.00025265,2]
[311703041,1705342237979,-24147.09650112,0.00025265,2]
[311703042,1705342237989,-170.099936,0.000255,2]
[311703043,1705342237999,-3175.56486605,0.00026013,2]
[311703044,1705342238009,-3320.63234672,0.00026132,2]
[311703046,1705342238018,-166.666666,0.0002637,2]
[311703048,1705342238027,-635.00082871,0.000264,2]
[311703049,1705342238036,-7225.61,0.00026526,3]
[311703051,1705342238045,-50000.0,0.00026546,2]
[311703053,1705342238055,-289.77163343,0.00027,2]
[311703055,1705342238065,-461.06432413,0.00027,2]
[311703057,1705342238074,-2937.1297427,0.00027029,2]
[311703060,1705342238084,-759.01091846,0.00027031,2]
[311703061,1705342238094,-10135.33451069,0.000274,2]
[311703064,1705342238106,-166.666666,0.00027516,2]
[311703066,1705342238115,-620.75004144,0.0002772,2]
[311703068,1705342238123,-200.0,0.00027791,15]
[311703070,1705342238133,-11696.38260207,0.00028232,5]
[311703072,1705342238141,-3316.84809972,0.00028232,2]
[311703073,1705342238151,-305.27027518,0.00028232,2]
[311703075,1705342238160,-500.0,0.00028373,2]
[311703077,1705342238169,-166.666666,0.00028662,2]
[311703079,1705342238178,-620.03750207,0.00029106,2]
[311703081,1705342238187,-500.0,0.00029373,2]
[311703083,1705342238196,-155.0,0.00029835,2]
[311703085,1705342238205,-152.57,0.00029899,2]
[311703087,1705342238214,-152.57,0.00029899,2]
[311703089,1705342238223,-152.57,0.00029899,2]
[311703090,1705342238232,-152.57,0.00029899,2]
[311703091,1705342238242,-152.57,0.00029899,2]
[311703092,1705342238251,-152.57,0.00029899,2]
[311703093,1705342238260,-152.57,0.00029899,2]
[311703094,1705342238269,-152.57,0.00029899,2]
[311703096,1705342238366,-238.18235332,0.000299,3]
[311703098,1705342238376,-187018.29989919,0.000299,2]
[311703100,1705342238385,-226.4541414,0.000299,2]
[311703102,1705342238394,-500.0,0.00029999,2]
[311703104,1705342238404,-3757.35908,0.0003,2]
[311703106,1705342238413,-282.83454941,0.0003,3]
[311703108,1705342238422,-681.78811125,0.0003,3]
[311703110,1705342238431,-10480.5,0.0003,2]
[311703112,1705342238440,-155.41682727,0.0003,4]
[311703114,1705342238449,-297.8809135,0.0003,4]
[311703116,1705342238458,-677.30340506,0.00030034,4]
[311703118,1705342238467,-155.78668595,0.00030104,2]
[311703120,1705342238477,-1299.26146621,0.00030134,4]
[311703122,1705342238486,-219.49850361,0.00030134,4]
[311703124,1705342238497,-4427.47464918,0.00030134,3]
[311703126,1705342238506,-334.8362529,0.00030134,4]
[311703128,1705342238515,-721.83907828,0.00030134,4]
[311703130,1705342238524,-178.22448375,0.00030134,4]
[311703132,1705342238534,-266.38915451,0.00030134,2]
[311703134,1705342238543,-155.35552222,0.00030134,2]
[311703135,1705342238551,-1026.80128784,0.00030135,4]
[311703137,1705342238560,-151.0,0.00030136,2]
[311703139,1705342238569,-151.0,0.00030136,2]
[311703141,1705342238579,-151.0,0.00030136,2]
[311703143,1705342238588,-151.0,0.00030136,2]
[311703145,1705342238599,-151.0,0.00030136,2]
[311703147,1705342238608,-930.339634,0.00030136,2]
[311703149,1705342238617,-930.339634,0.00030136,2]
[311703151,1705342238627,-500.0,0.00030136,2]
[311703153,1705342238636,-500.0,0.00030136,2]
[311703155,1705342238645,-500.0,0.00030136,2]
[311703157,1705342238655,-500.0,0.00030136,2]
[311703159,1705342238664,-500.0,0.00030136,2]
[311703161,1705342238673,-505.17466226,0.00030136,2]
[311703163,1705342238682,-500.0,0.00030136,2]
[311703165,1705342238691,-500.0,0.00030136,2]
[311703167,1705342238701,-500.0,0.00030136,2]
[311703169,1705342238710,-500.69084539,0.00030136,2]
[311703171,1705342238721,-500.0,0.00030136,2]
[311703172,1705342238733,-500.0,0.00030136,2]
[311703173,1705342238742,-500.0,0.00030136,2]
[311703174,1705342238751,-500.0,0.00030136,2]
[311703175,1705342238761,-500.0,0.00030136,2]
[311703176,1705342238770,-500.0,0.00030136,2]
[311703177,1705342238780,-313.9541795,0.00030136,2]
[311703178,1705342238789,-500.0,0.00030136,2]
[311703179,1705342238799,-503.76042726,0.00030136,2]
[311703180,1705342238810,-500.0,0.00030136,2]
[311703181,1705342238823,-506.32586647,0.00030136,2]
[311703182,1705342238833,-500.0,0.00030136,2]
[311703183,1705342238842,-502.26651001,0.00030136,2]
[311703184,1705342238851,-254.4993865,0.00030136,2]
[311703185,1705342238861,-500.0,0.00030136,2]
[311703186,1705342238870,-500.0,0.00030136,2]
[311703187,1705342238879,-202.46857956,0.00030136,2]
[311703188,1705342238889,-150.0,0.00030136,2]
[311703189,1705342238899,-500.0,0.00030136,2]
[311703190,1705342238908,-500.0,0.00030136,2]
[311703191,1705342238917,-500.0,0.00030136,2]
[311703192,1705342238927,-500.0,0.00030136,2]
[311703193,1705342238936,-500.0,0.00030136,2]
[311703194,1705342238945,-500.0,0.00030136,2]
[311703195,1705342238954,-500.0,0.00030136,2]
[311703196,1705342238962,-502.82129946,0.00030136,2]
[311703197,1705342238971,-610.79,0.00030136,2]
[311703198,1705342238979,-500.0,0.00030136,2]
[311703199,1705342238988,-500.0,0.00030136,2]
[311703200,1705342238997,-500.0,0.00030136,2]
[311703201,1705342239006,-500.0,0.00030136,2]
[311703202,1705342239014,-500.0,0.00030136,2]
[311703204,1705342239023,-256.92126022,0.00030136,2]
[311703206,1705342239032,-502.37082528,0.00030136,2]
[311703208,1705342239041,-507.77,0.00030136,2]
[311703209,1705342239051,-500.23364505,0.00030136,2]
[311703211,1705342239060,-500.25080538,0.00030136,2]
[311703213,1705342239069,-500.0,0.00030136,2]
[311703215,1705342239078,-500.0,0.00030136,2]
[311703217,1705342239087,-500.0,0.00030136,2]
[311703219,1705342239097,-500.0,0.00030136,2]
[311703221,1705342239106,-500.0,0.00030136,2]
[311703223,1705342239115,-500.0,0.00030136,2]
[311703224,1705342239123,-500.0,0.00030136,2]
[311703226,1705342239133,-1000.0,0.00030136,2]
[311703228,1705342239142,-500.0,0.00030136,2]
[311703230,1705342239151,-602.94191662,0.00030136,2]
[311703232,1705342239161,-500.88114672,0.00030136,2]
[311703234,1705342239170,-567.38487015,0.00030136,2]
[311703236,1705342239179,-510.86527479,0.00030136,2]
[311703237,1705342239188,-500.0,0.00030136,2]
[311703239,1705342239197,-500.0,0.00030136,2]
[311703241,1705342239206,-500.0,0.00030136,2]
[311703243,1705342239216,-500.0,0.00030136,2]
[311703245,1705342239225,-602.05912595,0.00030136,2]
[311703247,1705342239234,-537.38332628,0.00030136,2]
[311703250,1705342239242,-500.0,0.00030136,2]
[311703252,1705342239251,-500.0,0.00030136,2]
[311703254,1705342239260,-991.46,0.00030136,2]
[311703256,1705342239270,-220.10757658,0.00030136,2]
[311703258,1705342239279,-232.9672703,0.00030136,2]
[311703260,1705342239288,-500.0,0.00030136,2]
[311703263,1705342239297,-500.0,0.00030136,2]
[311703265,1705342239306,-500.0,0.00030136,2]
[311703268,1705342239315,-500.0,0.00030136,2]
[311703271,1705342239324,-355.51433788,0.00030136,2]
[311703273,1705342239333,-500.0,0.00030136,2]
[311703276,1705342239342,-500.0,0.00030136,2]
[311703279,1705342239352,-611.17086737,0.00030136,2]
[311703281,1705342239360,-500.0,0.00030136,2]
[311703283,1705342239370,-513.83673442,0.00030136,2]
[311703285,1705342239379,-500.0,0.00030136,2]
[311703286,1705342239388,-500.0,0.00030136,2]
[311703287,1705342239397,-157.72893197,0.00030136,2]
[311703288,1705342239407,-500.0,0.00030136,2]
[311703289,1705342239417,-1934.91,0.00030136,2]
[311703290,1705342239426,-500.0,0.00030136,2]
[311703291,1705342239435,-500.0,0.00030136,2]
[311703292,1705342239444,-1003.24708738,0.00030136,2]
[311703293,1705342239453,-502.86947802,0.00030136,2]
[311703294,1705342239462,-500.0,0.00030136,2]
[311703295,1705342239471,-500.0,0.00030136,2]
[311703296,1705342239481,-501.11966255,0.00030136,2]
[311703297,1705342239490,-500.0,0.00030136,2]
[311703298,1705342239500,-163.18093818,0.00030136,2]
[311703299,1705342239509,-500.0,0.00030136,2]
[311703300,1705342239518,-414.80633094,0.00030136,2]
[311703301,1705342239527,-500.0,0.00030136,2]
[311703302,1705342239536,-572.92806522,0.00030136,2]
[311703303,1705342239546,-465.11184829,0.00030136,2]
[311703304,1705342239555,-168.98875141,0.00030136,2]
[311703305,1705342239564,-500.0,0.00030136,2]
[311703306,1705342239574,-500.0,0.00030136,2]
[311703307,1705342239583,-382.8771943,0.00030136,2]
[311703308,1705342239593,-500.0,0.00030136,2]
[311703309,1705342239603,-500.0,0.00030136,2]
[311703310,1705342239612,-503.63526801,0.00030136,2]
[311703311,1705342239621,-503.2198619,0.00030136,2]
[311703312,1705342239631,-491.66261794,0.00030136,2]
[311703313,1705342239640,-502.677558,0.00030136,2]
[311703314,1705342239649,-500.0,0.00030136,2]
[311703315,1705342239659,-640.00492677,0.00030136,2]
[311703316,1705342239668,-502.20560869,0.00030136,2]
[311703317,1705342239677,-501.20711397,0.00030136,2]
[311703318,1705342239686,-500.0,0.00030136,2]
[311703319,1705342239696,-500.0,0.00030136,2]
[311703320,1705342239705,-549.77918226,0.00030136,2]
[311703321,1705342239714,-170.50663149,0.00030136,2]
[311703322,1705342239723,-231.41577628,0.00030136,2]
[311703323,1705342239733,-500.0,0.00030136,2]
[311703324,1705342239742,-623.09530042,0.00030136,2]
[311703325,1705342239751,-500.0,0.00030136,2]
[311703326,1705342239761,-500.0,0.00030136,2]
[311703327,1705342239771,-635.55,0.00030136,2]
[311703328,1705342239781,-301.26514521,0.00030136,2]
[311703331,1705342239790,-500.0,0.00030136,2]
[311703333,1705342239799,-500.0,0.00030136,2]
[311703335,1705342239808,-1168.27,0.00030136,2]
[311703337,1705342239817,-500.0,0.00030136,2]
[311703339,1705342239826,-500.0,0.00030136,2]
[311703341,1705342239835,-227.58827317,0.00030136,2]
[311703342,1705342239911,-500.0,0.00030136,2]
[311703343,1705342239921,-500.0,0.00030136,2]
[311703344,1705342239931,-500.0,0.00030136,2]
[311703345,1705342239940,-500.0,0.00030136,2]
[311703346,1705342239949,-500.0,0.00030136,2]
[311703347,1705342239959,-220.0,0.00030136,2]
[311703348,1705342239968,-501.08375039,0.00030136,2]
[311703349,1705342239977,-500.0,0.00030136,2]
[311703350,1705342239986,-866.83,0.00030136,2]
[311703351,1705342239996,-501.81469596,0.00030136,2]
[311703352,1705342240006,-500.0,0.00030136,2]
[311703353,1705342240015,-500.0,0.00030136,2]
[311703354,1705342240024,-500.0,0.00030136,2]
[311703355,1705342240034,-500.0,0.00030136,2]
[311703356,1705342240043,-504.46218806,0.00030136,2]
[311703357,1705342240052,-627.74839216,0.00030136,2]
[311703358,1705342240062,-643.89,0.00030136,2]
[311703359,1705342240071,-500.0,0.00030136,2]
[311703360,1705342240080,-500.0,0.00030136,2]
[311703361,1705342240089,-500.0,0.00030136,2]
[311703362,1705342240098,-500.72638091,0.00030136,2]
[311703363,1705342240108,-500.0,0.00030136,2]
[311703364,1705342240116,-500.0,0.00030136,2]
[311703365,1705342240125,-1180.87,0.00030136,2]
[311703366,1705342240134,-500.0,0.00030136,10]
[311703367,1705342240143,-500.0,0.00030136,2]
[311703369,1705342240152,-500.0,0.00030136,2]
[311703370,1705342240161,-500.0,0.00030136,2]
[311703372,1705342240170,-501.32112108,0.00030136,2]
[311703374,1705342240180,-500.0,0.00030136,2]
[311703375,1705342240189,-500.0,0.00030136,2]
[311703377,1705342240198,-500.0,0.00030136,2]
[311703378,1705342240207,-500.0,0.00030136,2]
[311703379,1705342240216,-777.05,0.00030136,2]
[311703380,1705342240225,-500.0,0.00030136,2]
[311703381,1705342240235,-500.0,0.00030136,2]
[311703382,1705342240244,-500.0,0.00030136,2]
[311703383,1705342240253,-500.0,0.00030136,2]
[311703384,1705342240262,-531.32900075,0.00030136,2]
[311703385,1705342240271,-500.0,0.00030136,2]
[311703386,1705342240280,-501.13132414,0.00030136,2]
[311703387,1705342240289,-374.146509,0.00030136,2]
[311703388,1705342240299,-500.0,0.00030136,2]
[311703389,1705342240308,-500.0,0.00030136,2]
[311703390,1705342240318,-500.0,0.00030136,2]
[311703391,1705342240328,-10000.0,0.00030136,10]
[311703392,1705342240338,-500.0,0.00030136,2]
[311703393,1705342240349,-508.34806306,0.00030136,2]
[311703394,1705342240358,-500.0,0.00030136,2]
[311703395,1705342240367,-500.0,0.00030136,2]
[311703396,1705342240377,-202.68601616,0.00030136,2]
[311703397,1705342240386,-500.0,0.00030136,2]
[311703398,1705342240395,-500.0,0.00030136,2]
[311703399,1705342240404,-500.0,0.00030136,2]
[311703400,1705342240414,-500.0,0.00030136,2]
[311703401,1705342240423,-500.0,0.00030136,2]
[311703402,1705342240432,-500.0,0.00030136,2]
[311703403,1705342240441,-662.59,0.00030136,2]
[311703404,1705342240450,-155.42991444,0.00030136,2]
[311703405,1705342240459,-552.84023923,0.00030136,2]
[311703406,1705342240468,-500.0,0.00030136,2]
[311703407,1705342240477,-500.0,0.00030136,2]
[311703408,1705342240486,-500.0,0.00030136,2]
[311703409,1705342240495,-500.60332259,0.00030136,2]
[311703410,1705342240504,-500.0,0.00030136,2]
[311703411,1705342240513,-501.2924132,0.00030136,2]
[311703412,1705342240522,-500.0,0.00030136,2]
[311703413,1705342240540,-1000.0,0.00030136,5]
[311703414,1705342240552,-707.49,0.00030136,2]
[311703415,1705342240562,-500.0,0.00030136,2]
[311703416,1705342240572,-500.0,0.00030136,2]
[311703417,1705342240581,-500.0,0.00030136,2]
[311703418,1705342240592,-500.0,0.00030136,2]
[311703419,1705342240614,-500.0,0.00030136,2]
[311703420,1705342240630,-500.0,0.00030136,2]
[311703421,1705342240646,-500.0,0.00030136,2]
[311703422,1705342240659,-500.0,0.00030136,2]
[311703423,1705342240673,-500.0,0.00030136,2]
[311703424,1705342240688,-427.61481384,0.00030136,2]
[311703425,1705342240703,-517.22036158,0.00030136,2]
[311703426,1705342240721,-401.60196883,0.00030136,2]
[311703427,1705342240734,-500.0,0.00030136,2]
[311703428,1705342240748,-500.0,0.00030136,2]
[311703429,1705342240759,-263.46749869,0.00030136,2]
[311703430,1705342240773,-429.10569862,0.00030136,2]
[311703431,1705342240787,-500.0,0.00030136,2]
[311703432,1705342240801,-531.48250148,0.00030136,2]
[311703433,1705342240814,-500.0,0.00030136,2]
[311703434,1705342240828,-500.0,0.00030136,2]
[311703435,1705342240841,-510.37006199,0.00030136,2]
[311703436,1705342240852,-500.0,0.00030136,2]
[311703437,1705342240867,-197.25905233,0.00030136,2]
[311703438,1705342240879,-506.77404664,0.00030136,2]
[311703439,1705342240894,-500.95051049,0.00030136,2]
[311703440,1705342240907,-500.0,0.00030136,2]
[311703441,1705342240920,-500.0,0.00030136,2]
[311703442,1705342240933,-500.0,0.00030136,2]
[311703443,1705342240945,-500.0,0.00030136,2]
[311703444,1705342240958,-500.0,0.00030136,2]
[311703445,1705342240973,-500.0,0.00030136,2]
[311703446,1705342240986,-500.0,0.00030136,2]
[311703447,1705342240999,-500.0,0.00030136,2]
[311703448,1705342241009,-500.0,0.00030136,2]
[311703449,1705342241020,-229.10235383,0.00030136,2]
[311703450,1705342241031,-500.0,0.00030136,2]
[311703451,1705342241044,-509.18359272,0.00030136,2]
[311703452,1705342241056,-500.0,0.00030136,2]
[311703453,1705342241069,-500.0,0.00030136,2]
[311703454,1705342241082,-500.0,0.00030136,2]
[311703455,1705342241092,-500.0,0.00030136,2]
[311703456,1705342241103,-523.319813,0.00030136,2]
[311703457,1705342241115,-799.82,0.00030136,2]
[311703458,1705342241126,-509.56210125,0.00030136,2]
[311703459,1705342241139,-567.53245739,0.00030136,2]
[311703460,1705342241151,-155.68386071,0.00030136,2]
[311703461,1705342241163,-500.0,0.00030136,2]
[311703462,1705342241175,-500.0,0.00030136,2]
[311703463,1705342241187,-300.39282718,0.00030136,2]
[311703464,1705342241199,-500.0,0.00030136,2]
[311703465,1705342241210,-500.0,0.00030136,2]
[311703466,1705342241223,-740.73,0.00030136,2]
[311703467,1705342241234,-225.18716407,0.00030136,2]
[311703468,1705342241245,-500.0,0.00030136,2]
[311703469,1705342241256,-666.11,0.00030136,2]
[311703470,1705342241267,-500.0,0.00030136,2]
[311703471,1705342241278,-253.24117854,0.00030136,2]
[311703472,1705342241289,-500.0,0.00030136,2]
[311703473,1705342241300,-2386.47,0.00030136,2]
[311703474,1705342241311,-500.0,0.00030136,2]
[311703475,1705342241321,-600.84545332,0.00030136,2]
[311703476,1705342241332,-500.0,0.00030136,2]
[311703477,1705342241343,-500.0,0.00030136,2]
[311703478,1705342241354,-500.0,0.00030136,2]
[311703479,1705342241365,-500.0,0.00030136,2]
[311703480,1705342241376,-591.61405178,0.00030136,2]
[311703481,1705342241387,-500.0,0.00030136,2]
[311703482,1705342241398,-500.0,0.00030136,2]
[311703483,1705342241409,-500.0,0.00030136,2]
[311703484,1705342241419,-421.62,0.00030136,2]
[311703485,1705342241430,-213.340984,0.00030136,2]
[311703486,1705342241441,-500.0,0.00030136,2]
[311703487,1705342241452,-500.0,0.00030136,2]
[311703488,1705342241463,-638.79,0.00030136,2]
[311703489,1705342241475,-500.0,0.00030136,2]
[311703490,1705342241486,-1128.27,0.00030136,2]
[311703491,1705342241498,-500.0,0.00030136,2]
[311703492,1705342241509,-500.0,0.00030136,2]
[311703493,1705342241619,-643.44,0.00030136,2]
[311703494,1705342241633,-500.0,0.00030136,2]
[311703495,1705342241642,-500.85643977,0.00030136,2]
[311703496,1705342241651,-500.0,0.00030136,2]
[311703497,1705342241660,-488.22852689,0.00030136,2]
[311703498,1705342241670,-500.0,0.00030136,2]
[311703499,1705342241679,-500.0,0.00030136,2]
[311703500,1705342241688,-500.0,0.00030136,2]
[311703501,1705342241697,-2513.68,0.00030136,2]
[311703502,1705342241706,-500.0,0.00030136,2]
[311703503,1705342241715,-500.0,0.00030136,2]
[311703504,1705342241724,-500.0,0.00030136,2]
[311703505,1705342241734,-518.86247278,0.00030136,2]
[311703506,1705342241742,-500.0,0.00030136,2]
[311703507,1705342241751,-500.0,0.00030136,2]
[311703508,1705342241760,-500.0,0.00030136,2]
[311703509,1705342241769,-500.49527847,0.00030136,2]
[311703510,1705342241779,-500.0,0.00030136,2]
[311703511,1705342241788,-200.33733336,0.00030136,2]
[311703512,1705342241798,-356.58383934,0.00030136,2]
[311703513,1705342241807,-2383.03,0.00030136,2]
[311703514,1705342241816,-500.0,0.00030136,2]
[311703515,1705342241825,-500.0,0.00030136,2]
[311703516,1705342241835,-502.43224141,0.00030136,2]
[311703517,1705342241844,-500.0,0.00030136,2]
[311703518,1705342241853,-500.0,0.00030136,2]
[311703519,1705342241863,-500.0,0.00030136,2]
[311703520,1705342241872,-502.4278378,0.00030136,2]
[311703521,1705342241881,-548.52081002,0.00030136,2]
[311703522,1705342241890,-500.0,0.00030136,2]
[311703523,1705342241899,-500.0,0.00030136,2]
[311703524,1705342241908,-500.0,0.00030136,2]
[311703525,1705342241918,-500.0,0.00030136,2]
[311703526,1705342241927,-500.0,0.00030136,2]
[311703527,1705342241937,-500.0,0.00030136,2]
[311703528,1705342241946,-500.0,0.00030136,2]
[311703529,1705342241956,-500.0,0.00030136,2]
[311703530,1705342241965,-500.0,0.00030136,2]
[311703531,1705342241974,-500.0,0.00030136,2]
[311703532,1705342241984,-500.0,0.00030136,2]
[311703533,1705342241993,-500.0,0.00030136,2]
[311703534,1705342242003,-500.0,0.00030136,2]
[311703535,1705342242012,-500.0,0.00030136,2]
[311703536,1705342242021,-500.0,0.00030136,2]
[311703537,1705342242030,-500.0,0.00030136,2]
[311703538,1705342242039,-263.23548355,0.00030136,2]
[311703539,1705342242048,-500.0,0.00030136,2]
[311703540,1705342242058,-500.0,0.00030136,2]
[311703541,1705342242066,-500.0,0.00030136,2]
[311703542,1705342242076,-500.0,0.00030136,2]
[311703543,1705342242085,-500.0,0.00030136,2]
[311703544,1705342242094,-500.0,0.00030136,2]
[311703545,1705342242104,-500.0,0.00030136,2]
[311703546,1705342242113,-1277.37,0.00030136,2]
[311703547,1705342242122,-168.08126236,0.00030136,2]
[311703548,1705342242131,-503.09155982,0.00030136,2]
[311703549,1705342242141,-500.0,0.00030136,2]
[311703550,1705342242150,-500.0,0.00030136,2]
[311703551,1705342242160,-500.0,0.00030136,2]
[311703552,1705342242169,-500.0,0.00030136,2]
[311703553,1705342242178,-337.83766465,0.00030136,2]
[311703554,1705342242187,-500.0,0.00030136,2]
[311703555,1705342242197,-500.0,0.00030136,2]
[311703556,1705342242206,-500.0,0.00030136,2]
[311703557,1705342242215,-500.0,0.00030136,2]
[311703558,1705342242224,-500.0,0.00030136,2]
[311703559,1705342242233,-614.3,0.00030136,2]
[311703560,1705342242243,-505.67458463,0.00030136,2]
[311703561,1705342242252,-500.0,0.00030136,2]
[311703562,1705342242262,-500.0,0.00030136,2]
[311703564,1705342242271,-500.0,0.00030136,2]
[311703566,1705342242281,-501.28101026,0.00030136,2]
[311703568,1705342242289,-500.0,0.00030136,2]
[311703570,1705342242298,-500.0,0.00030136,2]
[311703572,1705342242308,-1000.0,0.00030136,2]
[311703574,1705342242317,-500.0,0.00030136,2]
[311703576,1705342242325,-500.0,0.00030136,2]
[311703578,1705342242334,-500.0,0.00030136,2]
[311703580,1705342242344,-500.0,0.00030136,2]
[311703581,1705342242356,-500.0,0.00030136,2]
[311703583,1705342242365,-20310.36,0.00030136,2]
[311703585,1705342242374,-500.0,0.00030136,2]
[311703586,1705342242384,-500.0,0.00030136,2]
[311703587,1705342242393,-500.0,0.00030136,2]
[311703588,1705342242402,-577.4,0.00030136,2]
[311703591,1705342242412,-500.0,0.00030136,2]
[311703594,1705342242421,-500.0,0.00030136,2]
[311703597,1705342242430,-500.0,0.00030136,2]
[311703599,1705342242439,-11705.45,0.00030136,2]
[311703601,1705342242448,-500.0,0.00030136,2]
[311703603,1705342242456,-500.0,0.00030136,2]
[311703604,1705342242465,-500.0,0.00030136,2]
[311703607,1705342242474,-500.0,0.00030136,2]
[311703608,1705342242484,-500.0,0.00030136,2]
[311703610,1705342242493,-500.0,0.00030136,2]
[311703612,1705342242502,-464.06891811,0.00030136,2]
[311703613,1705342242511,-500.0,0.00030136,2]
[311703614,1705342242521,-4504.16,0.00030136,2]
[311703615,1705342242530,-500.0,0.00030136,2]
[311703616,1705342242539,-500.0,0.00030136,2]
[311703617,1705342242548,-515.47059416,0.00030136,2]
[311703618,1705342242557,-733.36,0.00030136,2]
[311703619,1705342242569,-3289.01,0.00030136,2]
[311703620,1705342242578,-500.0,0.00030136,2]
[311703621,1705342242588,-500.0,0.00030136,2]
[311703622,1705342242599,-500.0,0.00030136,2]
[311703623,1705342242609,-2177.43,0.00030136,2]
[311703624,1705342242618,-1603.39,0.00030136,2]
[311703625,1705342242626,-513.20667322,0.00030136,2]
[311703626,1705342242635,-627.39276305,0.00030136,2]
[311703627,1705342242645,-500.0,0.00030136,2]
[311703628,1705342242654,-500.0,0.00030136,2]
[311703629,1705342242663,-3979.68,0.00030136,2]
[311703630,1705342242672,-283.44339765,0.00030136,2]
[311703631,1705342242681,-500.0,0.00030136,2]
[311703632,1705342242690,-500.0,0.00030136,5]
[311703634,1705342242698,-520.05672766,0.00030136,2]
[311703635,1705342242707,-500.0,0.00030136,2]
[311703637,1705342242718,-947.0,0.00030136,2]
[311703638,1705342242728,-500.0,0.00030136,2]
[311703640,1705342242741,-500.0,0.00030136,2]
[311703641,1705342242755,-502.51534222,0.00030136,2]
[311703642,1705342242765,-501.59674884,0.00030136,2]
[311703643,1705342242780,-834.77,0.00030136,2]
[311703644,1705342242789,-506.56848822,0.00030136,2]
[311703645,1705342242799,-500.0,0.00030136,2]
[311703646,1705342242809,-5176.84,0.00030136,2]
[311703647,1705342242818,-500.0,0.00030136,2]
[311703648,1705342242828,-500.0,0.00030136,2]
[311703649,1705342242837,-1071.51,0.00030136,2]
[311703650,1705342242847,-5532.13,0.00030136,2]
[311703651,1705342242856,-614.64,0.00030136,2]
[311703652,1705342242865,-500.0,0.00030136,2]
[311703653,1705342242874,-500.0,0.00030136,2]